[Event "Late-Titled-Tuesday-Blitz-June-25-2024"]
[Site "Chess.com"]
[Date "2024.06.25"]
[Round "11"]
[White "Fandorine"]
[Black "GlavkonVVS"]
[Result "1-0"]
[WhiteElo "2919"]
[BlackElo "2647"]
[TimeControl "180+1"]
[EndTime "16:07:06 PDT"]
[Termination "Fandorine won by checkmate"]

1. d4 {[%clk 0:03:00.9]} 1... Nf6 {[%clk 0:03:00.1]} 2. c4 {[%clk 0:03:00.9]}
2... e6 {[%clk 0:02:59.2]} 3. Nf3 {[%clk 0:03:00.2]} 3... c5 {[%clk 0:02:59.2]}
4. g3 {[%clk 0:02:58.5]} 4... cxd4 {[%clk 0:02:57.5]} 5. Nxd4 {[%clk 0:02:57.4]}
5... Nc6 {[%clk 0:02:57.5]} 6. Bg2 {[%clk 0:02:57.3]} 6... Bc5 {[%clk 0:02:58]}
7. Nb3 {[%clk 0:02:56.8]} 7... Be7 {[%clk 0:02:56.9]} 8. O-O {[%clk 0:02:56.6]}
8... O-O {[%clk 0:02:56.5]} 9. Nc3 {[%clk 0:02:56.8]} 9... d6 {[%clk 0:02:56.6]}
10. Bf4 {[%clk 0:02:56.4]} 10... a6 {[%clk 0:02:55.7]} 11. Qd2 {[%clk
0:02:55.7]} 11... e5 {[%clk 0:02:51.6]} 12. Bg5 {[%clk 0:02:54.3]} 12... Be6
{[%clk 0:02:52.1]} 13. Bxf6 {[%clk 0:02:54.3]} 13... Bxf6 {[%clk 0:02:51.4]} 14.
Nd5 {[%clk 0:02:55]} 14... Rc8 {[%clk 0:02:46.1]} 15. Rac1 {[%clk 0:02:52.5]}
15... Bg5 {[%clk 0:02:32.3]} 16. e3 {[%clk 0:02:47.7]} 16... f5 {[%clk
0:02:12.8]} 17. f4 {[%clk 0:02:39.5]} 17... Be7 {[%clk 0:02:03.7]} 18. Rfd1
{[%clk 0:02:38.5]} 18... e4 {[%clk 0:01:58.9]} 19. h3 {[%clk 0:02:25.8]} 19...
Kh8 {[%clk 0:01:41.5]} 20. Kh2 {[%clk 0:02:25.2]} 20... Bf6 {[%clk 0:01:35.8]}
21. a3 {[%clk 0:02:20.8]} 21... Bxd5 {[%clk 0:01:33.2]} 22. cxd5 {[%clk
0:02:13.9]} 22... Ne7 {[%clk 0:01:32.8]} 23. Na5 {[%clk 0:02:11.9]} 23... Qb6
{[%clk 0:01:24.4]} 24. b4 {[%clk 0:02:08.8]} 24... g6 {[%clk 0:01:13.2]} 25. g4
{[%clk 0:01:46.9]} 25... Rxc1 {[%clk 0:00:59]} 26. Rxc1 {[%clk 0:01:43.8]} 26...
g5 {[%clk 0:00:56.3]} 27. Nc4 {[%clk 0:01:36.7]} 27... Qd8 {[%clk 0:00:56.2]}
28. gxf5 {[%clk 0:01:33.3]} 28... Nxf5 {[%clk 0:00:55.9]} 29. Bxe4 {[%clk
0:01:31.9]} 29... Nh4 {[%clk 0:00:44.1]} 30. Bh1 {[%clk 0:01:18]} 30... Qe7
{[%clk 0:00:40.7]} 31. Rg1 {[%clk 0:00:56.7]} 31... Ng6 {[%clk 0:00:35.1]} 32.
Rg4 {[%clk 0:00:38.1]} 32... Re8 {[%clk 0:00:19.4]} 33. Bf3 {[%clk 0:00:29.9]}
33... b5 {[%clk 0:00:18.8]} 34. fxg5 {[%clk 0:00:18.4]} 34... Bxg5 {[%clk
0:00:17.5]} 35. Re4 {[%clk 0:00:18.7]} 35... Ne5 {[%clk 0:00:15.5]} 36. Nxe5
{[%clk 0:00:18.2]} 36... dxe5 {[%clk 0:00:15.7]} 37. d6 {[%clk 0:00:18.5]} 37...
Qf6 {[%clk 0:00:16.2]} 38. Bg2 {[%clk 0:00:18]} 38... Rd8 {[%clk 0:00:16.1]} 39.
d7 {[%clk 0:00:17.2]} 39... Qf5 {[%clk 0:00:14.9]} 40. Qc3 {[%clk 0:00:11.3]}
40... Bf6 {[%clk 0:00:14.8]} 41. Qc6 {[%clk 0:00:07.2]} 41... h5 {[%clk
0:00:14.7]} 42. Qxa6 {[%clk 0:00:05.2]} 42... Qf2 {[%clk 0:00:14]} 43. Qc6
{[%clk 0:00:04.4]} 43... h4 {[%clk 0:00:13.7]} 44. Rg4 {[%clk 0:00:04.4]} 44...
Rf8 {[%clk 0:00:11.7]} 45. Qe4 {[%clk 0:00:03.9]} 45... Qe1 {[%clk 0:00:06.7]}
46. Rg6 {[%clk 0:00:03.7]} 46... Qf2 {[%clk 0:00:05.8]} 47. Rh6+ {[%clk
0:00:04]} 47... Kg8 {[%clk 0:00:05.2]} 48. Qh7# {[%clk 0:00:04.9]} 1-0

[Event "Late-Titled-Tuesday-Blitz-June-25-2024"]
[Site "Chess.com"]
[Date "2024.06.25"]
[Round "11"]
[White "CM_rui"]
[Black "AlphaPerseii"]
[Result "0-1"]
[WhiteElo "2559"]
[BlackElo "2418"]
[TimeControl "180+1"]
[EndTime "16:07:12 PDT"]
[Termination "AlphaPerseii won on time"]

1. e4 {[%clk 0:02:59.9]} 1... c5 {[%clk 0:02:59.7]} 2. Nf3 {[%clk 0:03:00.6]}
2... Nc6 {[%clk 0:03:00.2]} 3. c3 {[%clk 0:02:59.9]} 3... Nf6 {[%clk 0:03:00.2]}
4. e5 {[%clk 0:03:00.2]} 4... Nd5 {[%clk 0:03:00.9]} 5. d4 {[%clk 0:03:00.8]}
5... cxd4 {[%clk 0:03:01.5]} 6. cxd4 {[%clk 0:03:01.7]} 6... d6 {[%clk
0:03:01.8]} 7. Bc4 {[%clk 0:03:02.2]} 7... Nb6 {[%clk 0:03:02]} 8. Bb5 {[%clk
0:03:02.7]} 8... Bd7 {[%clk 0:03:02.1]} 9. O-O {[%clk 0:03:02.5]} 9... dxe5
{[%clk 0:02:48.1]} 10. dxe5 {[%clk 0:02:49]} 10... e6 {[%clk 0:02:46.2]} 11. Nc3
{[%clk 0:02:47.9]} 11... a6 {[%clk 0:02:42.7]} 12. Bd3 {[%clk 0:02:45.4]} 12...
Be7 {[%clk 0:02:37.8]} 13. Qe2 {[%clk 0:02:44.3]} 13... Nb4 {[%clk 0:02:36.5]}
14. Bb1 {[%clk 0:02:42.3]} 14... Qc7 {[%clk 0:02:31.8]} 15. Be3 {[%clk 0:02:40]}
15... N4d5 {[%clk 0:02:29.9]} 16. Nxd5 {[%clk 0:02:36.8]} 16... Nxd5 {[%clk
0:02:29.2]} 17. Rc1 {[%clk 0:02:37.2]} 17... Qa5 {[%clk 0:02:24.2]} 18. Bd2
{[%clk 0:02:34.8]} 18... Qb6 {[%clk 0:02:22.2]} 19. Be4 {[%clk 0:02:30]} 19...
Bb5 {[%clk 0:02:20]} 20. Qe1 {[%clk 0:02:26.9]} 20... Rd8 {[%clk 0:02:16.5]} 21.
Ba5 {[%clk 0:02:26.5]} 21... Qa7 {[%clk 0:02:07.1]} 22. Bxd8 {[%clk 0:02:26.4]}
22... Bxd8 {[%clk 0:02:08]} 23. Bxd5 {[%clk 0:02:19.6]} 23... exd5 {[%clk
0:02:08.9]} 24. e6 {[%clk 0:02:20.3]} 24... Bb6 {[%clk 0:01:45.6]} 25. exf7+
{[%clk 0:02:19.6]} 25... Kxf7 {[%clk 0:01:45.7]} 26. Ng5+ {[%clk 0:02:17.1]}
26... Kg6 {[%clk 0:01:45.5]} 27. Qe6+ {[%clk 0:02:07.4]} 27... Kxg5 {[%clk
0:01:44.1]} 28. h4+ {[%clk 0:02:07.9]} 28... Kxh4 {[%clk 0:01:38.4]} 29. Rc3
{[%clk 0:01:38.3]} 29... Bxf2+ {[%clk 0:01:30]} 30. Kh2 {[%clk 0:01:33.9]} 30...
Qb8+ {[%clk 0:01:25.8]} 31. g3+ {[%clk 0:01:34.4]} 31... Bxg3+ {[%clk
0:01:23.8]} 32. Kg2 {[%clk 0:01:35]} 32... Re8 {[%clk 0:01:00.5]} 33. Rh1+
{[%clk 0:01:34.2]} 33... Kg5 {[%clk 0:01:00.9]} 34. Qxd5+ {[%clk 0:01:21.8]}
34... Kf6 {[%clk 0:00:34.4]} 35. Rxg3 {[%clk 0:01:12.9]} 35... Re2+ {[%clk
0:00:31.7]} 36. Kh3 {[%clk 0:01:12.3]} 36... Qf4 {[%clk 0:00:05.3]} 37. Qd8+
{[%clk 0:00:53.8]} 37... Kf7 {[%clk 0:00:04.2]} 38. Qd5+ {[%clk 0:00:47]} 38...
Kf6 {[%clk 0:00:04.6]} 39. Qd8+ {[%clk 0:00:10.5]} 39... Kf7 {[%clk 0:00:05.1]}
40. Qg5 {[%clk 0:00:01.4]} 40... Bd7+ {[%clk 0:00:04.1]} 41. Rg4 {[%clk
0:00:01.5]} 41... Qxg5 {[%clk 0:00:03.8]} 42. Rf1+ {[%clk 0:00:01.9]} 42... Kg8
{[%clk 0:00:04.1]} 43. Rg1 {[%clk 0:00:01.9]} 43... Bxg4+ {[%clk 0:00:03.9]} 44.
Rxg4 {[%clk 0:00:02.8]} 44... Re3+ {[%clk 0:00:04.4]} 0-1

[Event "Late-Titled-Tuesday-Blitz-June-25-2024"]
[Site "Chess.com"]
[Date "2024.06.25"]
[Round "11"]
[White "manitodeplomo"]
[Black "Akhayan"]
[Result "1-0"]
[WhiteElo "2583"]
[BlackElo "2410"]
[TimeControl "180+1"]
[EndTime "16:07:14 PDT"]
[Termination "manitodeplomo won by resignation"]

1. d4 {[%clk 0:03:00.9]} 1... Nf6 {[%clk 0:02:59.6]} 2. c4 {[%clk 0:03:00.7]}
2... g6 {[%clk 0:03:00.2]} 3. Nc3 {[%clk 0:03:00.1]} 3... d5 {[%clk 0:03:00.8]}
4. Nf3 {[%clk 0:02:57.4]} 4... Bg7 {[%clk 0:03:01.3]} 5. Qb3 {[%clk 0:02:57.5]}
5... dxc4 {[%clk 0:03:00.2]} 6. Qxc4 {[%clk 0:02:58.4]} 6... O-O {[%clk
0:03:00.4]} 7. e4 {[%clk 0:02:57.5]} 7... Bg4 {[%clk 0:03:01]} 8. Be3 {[%clk
0:02:41.2]} 8... Nfd7 {[%clk 0:03:01.1]} 9. Ng5 {[%clk 0:02:31.9]} 9... Nb6
{[%clk 0:02:54.4]} 10. Qd3 {[%clk 0:02:28]} 10... Nc6 {[%clk 0:02:47.4]} 11. h3
{[%clk 0:02:18.8]} 11... Bc8 {[%clk 0:02:39.4]} 12. O-O-O {[%clk 0:02:04.7]}
12... e5 {[%clk 0:02:36.4]} 13. Nf3 {[%clk 0:01:49.6]} 13... exd4 {[%clk
0:02:33.3]} 14. Nxd4 {[%clk 0:01:49.2]} 14... Ne5 {[%clk 0:02:32.5]} 15. Qb5
{[%clk 0:01:47.1]} 15... Qe7 {[%clk 0:02:19.8]} 16. Nb3 {[%clk 0:01:26]} 16...
c6 {[%clk 0:02:09.9]} 17. Qc5 {[%clk 0:01:25]} 17... Qf6 {[%clk 0:01:53.4]} 18.
f4 {[%clk 0:01:19.4]} 18... Ned7 {[%clk 0:01:45.9]} 19. Qd6 {[%clk 0:01:18.1]}
19... Qxd6 {[%clk 0:01:26.7]} 20. Rxd6 {[%clk 0:01:19]} 20... Re8 {[%clk
0:01:19.5]} 21. e5 {[%clk 0:01:10.5]} 21... Nf8 {[%clk 0:01:13.1]} 22. Be2
{[%clk 0:00:51.6]} 22... Be6 {[%clk 0:01:13.1]} 23. Nc5 {[%clk 0:00:47.9]} 23...
Bc4 {[%clk 0:00:59.2]} 24. Bf3 {[%clk 0:00:36.8]} 24... Ne6 {[%clk 0:00:52.2]}
25. Nxb7 {[%clk 0:00:31.1]} 25... Rab8 {[%clk 0:00:49.5]} 26. Na5 {[%clk
0:00:29.8]} 26... Bd5 {[%clk 0:00:37.2]} 27. Nxc6 {[%clk 0:00:20.4]} 27... Bxc6
{[%clk 0:00:33.3]} 28. Bxc6 {[%clk 0:00:20]} 28... Rec8 {[%clk 0:00:34]} 29. Bb5
{[%clk 0:00:12.6]} 29... Bf8 {[%clk 0:00:33.3]} 30. Rd2 {[%clk 0:00:11.3]} 30...
Bb4 {[%clk 0:00:31.3]} 31. Rc2 {[%clk 0:00:10.6]} 31... Bxc3 {[%clk 0:00:28.2]}
32. Rxc3 {[%clk 0:00:11.5]} 32... Rxc3+ {[%clk 0:00:27.6]} 33. bxc3 {[%clk
0:00:12.4]} 33... Nd5 {[%clk 0:00:28.2]} 34. Bf2 {[%clk 0:00:05.7]} 34... Rxb5
{[%clk 0:00:27.5]} 35. c4 {[%clk 0:00:06.2]} 35... Ra5 {[%clk 0:00:16.6]} 36.
cxd5 {[%clk 0:00:05.7]} 36... Rxd5 {[%clk 0:00:16.8]} 37. Rd1 {[%clk 0:00:04.8]}
37... Rxd1+ {[%clk 0:00:16.7]} 38. Kxd1 {[%clk 0:00:05.7]} 38... Nxf4 {[%clk
0:00:17]} 39. Bxa7 {[%clk 0:00:05.9]} 39... Nd3 {[%clk 0:00:15.1]} 40. a4 {[%clk
0:00:05.3]} 40... Nxe5 {[%clk 0:00:14.7]} 41. a5 {[%clk 0:00:05.8]} 41... Nc6
{[%clk 0:00:15.1]} 42. Bb6 {[%clk 0:00:06]} 42... Nb8 {[%clk 0:00:12.5]} 43. Kd2
{[%clk 0:00:05.5]} 43... f5 {[%clk 0:00:12.2]} 44. Kd3 {[%clk 0:00:05.5]} 44...
Kf7 {[%clk 0:00:12.8]} 45. Kc4 {[%clk 0:00:05.9]} 45... Ke6 {[%clk 0:00:13.5]}
46. Kb5 {[%clk 0:00:06.3]} 46... Kd5 {[%clk 0:00:13]} 47. Bc7 {[%clk 0:00:06.3]}
47... Nd7 {[%clk 0:00:12.3]} 48. a6 {[%clk 0:00:06.4]} 48... Nf8 {[%clk
0:00:03.1]} 49. a7 {[%clk 0:00:06.3]} 49... Ne6 {[%clk 0:00:03.8]} 50. Kb6
{[%clk 0:00:06.6]} 50... Nxc7 {[%clk 0:00:01.8]} 51. Kxc7 {[%clk 0:00:06.7]} 1-0

[Event "Late-Titled-Tuesday-Blitz-June-25-2024"]
[Site "Chess.com"]
[Date "2024.06.25"]
[Round "11"]
[White "Queensandpawns"]
[Black "MathiasWomacka"]
[Result "1-0"]
[WhiteElo "2316"]
[BlackElo "2512"]
[TimeControl "180+1"]
[EndTime "16:07:17 PDT"]
[Termination "Queensandpawns won on time"]

1. e4 {[%clk 0:03:00.9]} 1... c5 {[%clk 0:02:59]} 2. d4 {[%clk 0:03:00.4]} 2...
cxd4 {[%clk 0:02:58]} 3. c3 {[%clk 0:03:01]} 3... dxc3 {[%clk 0:02:58.6]} 4. Bc4
{[%clk 0:03:00.8]} 4... Nc6 {[%clk 0:02:58.2]} 5. Nf3 {[%clk 0:03:00.2]} 5... d6
{[%clk 0:02:57.2]} 6. O-O {[%clk 0:02:59.5]} 6... Nf6 {[%clk 0:02:51.8]} 7. Nxc3
{[%clk 0:02:58]} 7... a6 {[%clk 0:02:48.8]} 8. Bg5 {[%clk 0:02:18.2]} 8... e6
{[%clk 0:02:34.3]} 9. Re1 {[%clk 0:02:10.8]} 9... Be7 {[%clk 0:02:32.2]} 10. Qd2
{[%clk 0:01:43.7]} 10... b5 {[%clk 0:02:09.2]} 11. Bb3 {[%clk 0:01:40.4]} 11...
O-O {[%clk 0:01:49.3]} 12. Rad1 {[%clk 0:01:38.8]} 12... Bb7 {[%clk 0:01:48.7]}
13. Bc2 {[%clk 0:01:29]} 13... Rc8 {[%clk 0:01:36.2]} 14. Bb1 {[%clk 0:01:22.3]}
14... Na5 {[%clk 0:01:23.8]} 15. Qe2 {[%clk 0:01:18.7]} 15... Qc7 {[%clk
0:01:14.7]} 16. Qc2 {[%clk 0:00:49.5]} 16... e5 {[%clk 0:00:58.7]} 17. Qd2
{[%clk 0:00:46.5]} 17... Nc4 {[%clk 0:00:57.9]} 18. Qc1 {[%clk 0:00:46.5]} 18...
Nxb2 {[%clk 0:00:56.6]} 19. Qxb2 {[%clk 0:00:30.2]} 19... Qxc3 {[%clk
0:00:57.1]} 20. Qe2 {[%clk 0:00:31.1]} 20... Rfd8 {[%clk 0:00:49.8]} 21. Bd3
{[%clk 0:00:30.5]} 21... h6 {[%clk 0:00:42.6]} 22. Be3 {[%clk 0:00:29.4]} 22...
Qc7 {[%clk 0:00:35.8]} 23. Nh4 {[%clk 0:00:26.7]} 23... Bxe4 {[%clk 0:00:32.7]}
24. Bxe4 {[%clk 0:00:18.9]} 24... Nxe4 {[%clk 0:00:33.6]} 25. Nf5 {[%clk
0:00:19.1]} 25... Bg5 {[%clk 0:00:22.6]} 26. Qg4 {[%clk 0:00:15.5]} 26... Nf6
{[%clk 0:00:20.2]} 27. Qg3 {[%clk 0:00:14.3]} 27... Qd7 {[%clk 0:00:11.9]} 28.
Bxg5 {[%clk 0:00:13.2]} 28... Qxf5 {[%clk 0:00:11.3]} 29. Bxh6 {[%clk 0:00:13]}
29... Qg6 {[%clk 0:00:11.3]} 30. Bg5 {[%clk 0:00:10.1]} 30... Nh7 {[%clk
0:00:10.6]} 31. Bxd8 {[%clk 0:00:07.5]} 31... Qxg3 {[%clk 0:00:10.6]} 32. hxg3
{[%clk 0:00:08.4]} 32... Rxd8 {[%clk 0:00:10.6]} 33. Rxe5 {[%clk 0:00:09.1]}
33... Nf6 {[%clk 0:00:09.9]} 34. Re7 {[%clk 0:00:09.2]} 34... d5 {[%clk
0:00:09]} 35. Ra7 {[%clk 0:00:09.2]} 35... Rd6 {[%clk 0:00:08.5]} 36. f3 {[%clk
0:00:08.4]} 36... d4 {[%clk 0:00:08.3]} 37. Kf2 {[%clk 0:00:08.6]} 37... g6
{[%clk 0:00:06]} 38. Ra8+ {[%clk 0:00:06.2]} 38... Kg7 {[%clk 0:00:05]} 39. Rc8
{[%clk 0:00:06.7]} 39... Nd7 {[%clk 0:00:03.8]} 40. Rc2 {[%clk 0:00:06.5]} 40...
Ne5 {[%clk 0:00:03]} 41. Rcd2 {[%clk 0:00:06.4]} 41... d3 {[%clk 0:00:03.1]} 42.
f4 {[%clk 0:00:04.5]} 42... Ng4+ {[%clk 0:00:02.2]} 43. Kf3 {[%clk 0:00:04.7]}
43... f5 {[%clk 0:00:02.4]} 44. Rxd3 {[%clk 0:00:04]} 44... Rc6 {[%clk
0:00:02.9]} 45. Rd7+ {[%clk 0:00:04.1]} 45... Kf6 {[%clk 0:00:01.4]} 46. R7d6+
{[%clk 0:00:05]} 46... Rxd6 {[%clk 0:00:01.5]} 47. Rxd6+ {[%clk 0:00:05.2]}
47... Kf7 {[%clk 0:00:02.2]} 48. Rxa6 {[%clk 0:00:06.1]} 48... Nf6 {[%clk
0:00:01.9]} 49. Ra7+ {[%clk 0:00:07]} 49... Ke6 {[%clk 0:00:01.4]} 50. Rb7
{[%clk 0:00:07.5]} 1-0

[Event "Late-Titled-Tuesday-Blitz-June-25-2024"]
[Site "Chess.com"]
[Date "2024.06.25"]
[Round "11"]
[White "Maus7"]
[Black "Slovineanu"]
[Result "1/2-1/2"]
[WhiteElo "2665"]
[BlackElo "2574"]
[TimeControl "180+1"]
[EndTime "16:07:19 PDT"]
[Termination "Game drawn by stalemate"]

1. e4 {[%clk 0:03:00.9]} 1... c6 {[%clk 0:02:58.2]} 2. Nf3 {[%clk 0:03:00.6]}
2... d5 {[%clk 0:02:58.7]} 3. Nc3 {[%clk 0:03:01.3]} 3... dxe4 {[%clk
0:02:55.5]} 4. Nxe4 {[%clk 0:03:02.2]} 4... Nf6 {[%clk 0:02:55.6]} 5. Nxf6+
{[%clk 0:03:02.7]} 5... exf6 {[%clk 0:02:56.5]} 6. Bc4 {[%clk 0:03:02.9]} 6...
Bd6 {[%clk 0:02:56.4]} 7. Qe2+ {[%clk 0:03:03.4]} 7... Qe7 {[%clk 0:02:56.7]} 8.
Qxe7+ {[%clk 0:03:02.8]} 8... Kxe7 {[%clk 0:02:57]} 9. O-O {[%clk 0:03:02.9]}
9... Re8 {[%clk 0:02:57]} 10. Re1+ {[%clk 0:02:57.6]} 10... Kf8 {[%clk
0:02:55.1]} 11. Rxe8+ {[%clk 0:02:56.7]} 11... Kxe8 {[%clk 0:02:55.4]} 12. d4
{[%clk 0:02:54]} 12... a5 {[%clk 0:02:54.2]} 13. a4 {[%clk 0:02:46.8]} 13... Na6
{[%clk 0:02:52.3]} 14. Bd2 {[%clk 0:02:45.6]} 14... Nc7 {[%clk 0:02:52.1]} 15.
Re1+ {[%clk 0:02:44.3]} 15... Be6 {[%clk 0:02:48]} 16. c3 {[%clk 0:02:21.6]}
16... Kd7 {[%clk 0:02:47.5]} 17. Bd3 {[%clk 0:02:21.6]} 17... Nd5 {[%clk
0:02:04.8]} 18. g3 {[%clk 0:02:18]} 18... g6 {[%clk 0:01:45.5]} 19. Kg2 {[%clk
0:02:10.4]} 19... h5 {[%clk 0:01:42.1]} 20. Ng1 {[%clk 0:02:07.8]} 20... h4
{[%clk 0:01:31.5]} 21. f3 {[%clk 0:02:00.8]} 21... hxg3 {[%clk 0:01:31.1]} 22.
hxg3 {[%clk 0:01:59.7]} 22... b6 {[%clk 0:01:27.8]} 23. Ne2 {[%clk 0:01:55.5]}
23... Rh8 {[%clk 0:01:26.1]} 24. Rh1 {[%clk 0:01:54.3]} 24... Rxh1 {[%clk
0:01:25.3]} 25. Kxh1 {[%clk 0:01:55.2]} 25... f5 {[%clk 0:01:22]} 26. Kg2 {[%clk
0:01:51.1]} 26... Nc7 {[%clk 0:01:19.9]} 27. Bc2 {[%clk 0:01:49.2]} 27... Bc4
{[%clk 0:01:16.5]} 28. Nf4 {[%clk 0:01:46.6]} 28... Nd5 {[%clk 0:01:05.3]} 29.
Nxd5 {[%clk 0:01:44.9]} 29... Bxd5 {[%clk 0:01:04.3]} 30. Kf2 {[%clk 0:01:41.7]}
30... b5 {[%clk 0:01:01.1]} 31. Bf4 {[%clk 0:01:34.8]} 31... Bxf4 {[%clk
0:00:44.2]} 32. gxf4 {[%clk 0:01:35.7]} 32... b4 {[%clk 0:00:34.6]} 33. Ke3
{[%clk 0:01:30]} 33... f6 {[%clk 0:00:22.7]} 34. Bd1 {[%clk 0:01:17.7]} 34...
bxc3 {[%clk 0:00:21.6]} 35. bxc3 {[%clk 0:01:16.4]} 35... Bc4 {[%clk 0:00:22]}
36. Bc2 {[%clk 0:00:33.1]} 36... Kd6 {[%clk 0:00:21.5]} 37. Bd1 {[%clk
0:00:32.3]} 37... Kd5 {[%clk 0:00:19]} 38. Bc2 {[%clk 0:00:31.1]} 38... c5
{[%clk 0:00:19]} 39. dxc5 {[%clk 0:00:22.4]} 39... Kxc5 {[%clk 0:00:19.9]} 40.
Bd1 {[%clk 0:00:11.9]} 40... Bd5 {[%clk 0:00:20.2]} 41. Be2 {[%clk 0:00:10.9]}
41... Bc6 {[%clk 0:00:20.1]} 42. Bd1 {[%clk 0:00:10.3]} 42... Kc4 {[%clk
0:00:16.2]} 43. Kd2 {[%clk 0:00:10.6]} 43... g5 {[%clk 0:00:13.2]} 44. fxg5
{[%clk 0:00:09.6]} 44... fxg5 {[%clk 0:00:14.1]} 45. Bc2 {[%clk 0:00:09.4]}
45... g4 {[%clk 0:00:12.3]} 46. Bxf5 {[%clk 0:00:08.6]} 46... Bxf3 {[%clk
0:00:09.6]} 47. Bxg4 {[%clk 0:00:06.9]} 47... Bxg4 {[%clk 0:00:08.6]} 48. Kc2
{[%clk 0:00:07.3]} 48... Bd7 {[%clk 0:00:09.1]} 49. Kb2 {[%clk 0:00:08]} 49...
Bxa4 {[%clk 0:00:08.8]} 50. Ka1 {[%clk 0:00:08.9]} 50... Bc6 {[%clk 0:00:09]}
51. Kb1 {[%clk 0:00:09.8]} 51... a4 {[%clk 0:00:06.8]} 52. Ka1 {[%clk
0:00:10.7]} 52... Kb3 {[%clk 0:00:04.5]} 53. Kb1 {[%clk 0:00:11.6]} 53... a3
{[%clk 0:00:04.2]} 54. Ka1 {[%clk 0:00:12.5]} 54... Bb5 {[%clk 0:00:03.7]} 55.
c4 {[%clk 0:00:12]} 55... Bxc4 {[%clk 0:00:03.7]} 56. Kb1 {[%clk 0:00:12]} 56...
Bd3+ {[%clk 0:00:04.1]} 57. Ka1 {[%clk 0:00:12.9]} 57... a2 {[%clk 0:00:04.6]}
1/2-1/2

[Event "Late-Titled-Tuesday-Blitz-June-25-2024"]
[Site "Chess.com"]
[Date "2024.06.25"]
[Round "11"]
[White "Flaccidmoves"]
[Black "simaopdias"]
[Result "1-0"]
[WhiteElo "2528"]
[BlackElo "2273"]
[TimeControl "180+1"]
[EndTime "16:07:19 PDT"]
[Termination "Flaccidmoves won on time"]

1. d4 {[%clk 0:03:00.9]} 1... Nf6 {[%clk 0:02:59.4]} 2. c4 {[%clk 0:03:01.1]}
2... e6 {[%clk 0:03:00]} 3. Nc3 {[%clk 0:03:01.4]} 3... b6 {[%clk 0:03:00.7]} 4.
e4 {[%clk 0:03:00.8]} 4... Bb4 {[%clk 0:02:58.7]} 5. e5 {[%clk 0:02:59.9]} 5...
Ne4 {[%clk 0:02:58.5]} 6. Qf3 {[%clk 0:02:41]} 6... Bb7 {[%clk 0:02:55.3]} 7. a3
{[%clk 0:02:21.8]} 7... Bxc3+ {[%clk 0:02:54.9]} 8. bxc3 {[%clk 0:02:22.7]} 8...
d5 {[%clk 0:02:55.2]} 9. cxd5 {[%clk 0:02:02.9]} 9... exd5 {[%clk 0:02:52.4]}
10. Bd3 {[%clk 0:02:00.5]} 10... Nd7 {[%clk 0:02:48.8]} 11. Qg4 {[%clk
0:01:57.9]} 11... g6 {[%clk 0:02:35.2]} 12. f3 {[%clk 0:01:47.8]} 12... h5
{[%clk 0:02:28.1]} 13. Qf4 {[%clk 0:01:45.4]} 13... Nxc3 {[%clk 0:02:26.2]} 14.
Nh3 {[%clk 0:01:38.3]} 14... c5 {[%clk 0:02:09.2]} 15. e6 {[%clk 0:01:31.9]}
15... Qe7 {[%clk 0:02:08.6]} 16. Ng5 {[%clk 0:01:32.4]} 16... fxe6 {[%clk
0:02:00]} 17. Bxg6+ {[%clk 0:01:31.8]} 17... Kd8 {[%clk 0:01:57.3]} 18. Nf7+
{[%clk 0:01:31.5]} 18... Kc8 {[%clk 0:01:54.3]} 19. Nd6+ {[%clk 0:01:31.3]}
19... Kd8 {[%clk 0:00:46]} 20. Nxb7+ {[%clk 0:01:30.7]} 20... Kc8 {[%clk
0:00:46.6]} 21. Nd6+ {[%clk 0:01:31.1]} 21... Kd8 {[%clk 0:00:45.3]} 22. Nf7+
{[%clk 0:01:31.2]} 22... Kc8 {[%clk 0:00:45.8]} 23. Nxh8 {[%clk 0:01:29.7]}
23... Kb7 {[%clk 0:00:46.4]} 24. Nf7 {[%clk 0:01:26.9]} 24... Nb5 {[%clk
0:00:43.3]} 25. Be3 {[%clk 0:01:13.5]} 25... cxd4 {[%clk 0:00:40.1]} 26. Bxd4
{[%clk 0:01:08.9]} 26... Rf8 {[%clk 0:00:39.5]} 27. Bg7 {[%clk 0:01:06.6]} 27...
Rc8 {[%clk 0:00:38.7]} 28. O-O {[%clk 0:01:03.5]} 28... h4 {[%clk 0:00:38.2]}
29. Rac1 {[%clk 0:01:02.4]} 29... Rg8 {[%clk 0:00:24.8]} 30. Qh6 {[%clk
0:00:38.4]} 30... Nd6 {[%clk 0:00:17.4]} 31. Nxd6+ {[%clk 0:00:37.4]} 31... Qxd6
{[%clk 0:00:18.3]} 32. Bf7 {[%clk 0:00:35.5]} 32... Rd8 {[%clk 0:00:17.4]} 33.
Qxe6 {[%clk 0:00:35.1]} 33... Qf4 {[%clk 0:00:13.6]} 34. Qc6+ {[%clk 0:00:33.2]}
34... Ka6 {[%clk 0:00:13.6]} 35. Bxd5 {[%clk 0:00:32.4]} 35... Nc5 {[%clk
0:00:08.4]} 36. Bc4+ {[%clk 0:00:31.6]} 36... Qxc4 {[%clk 0:00:03.8]} 37. Rxc4
{[%clk 0:00:32.5]} 37... h3 {[%clk 0:00:03.8]} 38. Rxc5 {[%clk 0:00:27.8]} 38...
hxg2 {[%clk 0:00:04.7]} 39. Rb1 {[%clk 0:00:17.8]} 39... Rd1+ {[%clk 0:00:05.1]}
40. Kxg2 {[%clk 0:00:12.4]} 40... Rg1+ {[%clk 0:00:05.7]} 41. Kh3 {[%clk
0:00:04.3]} 41... Rg3+ {[%clk 0:00:06]} 42. Kh4 {[%clk 0:00:04.6]} 42... Rh3+
{[%clk 0:00:04.8]} 43. Kg5 {[%clk 0:00:04.1]} 43... Rh5+ {[%clk 0:00:05]} 44.
Kf6 {[%clk 0:00:03.7]} 44... Rf5+ {[%clk 0:00:04.8]} 45. Ke7 {[%clk 0:00:01.9]}
45... Rf7+ {[%clk 0:00:04.7]} 46. Kd6 {[%clk 0:00:02.8]} 46... Rd7+ {[%clk
0:00:02.7]} 47. Qxd7 {[%clk 0:00:02.3]} 47... bxc5 {[%clk 0:00:01.4]} 48. Qb7+
{[%clk 0:00:02.9]} 1-0